bitfinex-derivatives/quotes_BTCF0:USTF0_20251210
["timestamp","ask_amount","ask_price","bid_price","bid_amount"]
[1765398009950,0.00016006,93694.0,93689.0,0.0106715]
[1765398010148,0.0106712,93693.0,93679.0,0.00021328]
[1765398010347,0.01083126,93694.0,93688.0,0.001]
[1765398010540,0.3608,93689.0,93688.0,0.001]
[1765398010736,0.00016006,93694.0,93689.0,0.0106716]
[1765398010954,0.3608,93716.0,93713.0,0.0106689]
[1765398011139,0.3608,93727.0,93724.0,0.0106676]
[1765398011340,0.3608,93736.0,93714.0,0.3608]
[1765398011543,0.0106683,93718.0,93687.0,0.3608]
[1765398011851,0.3608,93728.0,93723.0,0.0106677]
[1765398012151,0.00016006,93735.0,93734.0,0.0106665]
[1765398012342,0.3608,93756.0,93755.0,0.010664]
[1765398012544,0.3608,93776.0,93765.0,0.010663]
[1765398012742,0.3608,93777.0,93774.0,0.010662]
[1765398012941,0.3608,93777.0,93743.0,0.0533272]
[1765398012942,0.3608,93795.0,93788.0,0.0106603]
[1765398013149,0.3608,93806.0,93790.0,0.3608]
[1765398013447,0.00015997,93807.0,93799.0,0.3714591]
[1765398013651,0.00015997,93807.0,93805.0,0.0106584]
[1765398013847,0.0106547,93838.0,93812.0,0.0106576]
[1765398014046,0.3714553,93833.0,93820.0,0.3608]
[1765398014249,0.3608,93841.0,93820.0,0.3608]
[1765398014451,0.3608,93848.0,93822.0,0.3608]
[1765398014658,0.0106541,93843.0,93822.0,0.3608]
[1765398014948,0.002,93838.0,93831.0,0.3608]
[1765398015347,0.3608,93873.0,93842.0,0.0106541]
[1765398015542,0.0106523,93860.0,93848.0,0.3608]
[1765398015738,0.0106527,93856.0,93819.0,0.0106568]
[1765398015941,0.3608,93846.0,93831.0,0.3608]
[1765398016144,0.0106539,93845.0,93831.0,0.3608]
[1765398016455,0.0106558,93829.0,93807.0,0.3608]
[1765398016641,0.3608,93812.0,93796.0,0.3608]
[1765398016845,0.3608,93804.0,93796.0,0.3608]
[1765398017151,0.00015987,93827.0,93795.0,0.00015987]
[1765398017152,0.3608,93805.0,93795.0,0.00015987]
[1765398017452,0.00015987,93809.0,93803.0,0.0106586]
[1765398017759,0.00015987,93809.0,93803.0,0.3608]
[1765398017946,0.3608,93822.0,93812.0,0.0106576]
[1765398018254,0.3608,93841.0,93795.0,0.00015987]
[1765398018255,0.3608,93841.0,93821.0,0.3608]
[1765398018450,0.3714544,93841.0,93821.0,0.3608]
[1765398018651,0.3608,93831.0,93821.0,0.3608]
[1765398018859,0.3608,93822.0,93813.0,0.3608]
[1765398019150,0.00010305,93835.0,93821.0,0.3608]
[1765398019457,0.3608,93852.0,93819.0,0.00015987]
[1765398019458,0.0106556,93831.0,93819.0,0.00015987]
[1765398019640,0.3608,93827.0,93819.0,0.00015987]
[1765398019841,0.00010305,93837.0,93819.0,0.00015987]
[1765398020042,0.00010305,93837.0,93831.0,0.0106555]
[1765398020250,0.003,93835.0,93825.0,0.0106561]
[1765398020450,0.003,93835.0,93819.0,0.00015987]
[1765398020451,0.0106552,93834.0,93819.0,0.00015987]
[1765398020653,0.0106559,93827.0,93819.0,0.00015987]
[1765398020951,0.0106566,93822.0,93819.0,0.00015987]
[1765398021455,0.3608,93820.0,93819.0,0.00015987]
[1765398021842,0.3608,93820.0,93796.0,0.3608]
[1765398022159,0.003,93835.0,93796.0,0.3608]
[1765398022160,0.003,93835.0,93831.0,0.0106554]
[1765398022341,0.3608,93850.0,93847.0,0.0106536]
[1765398022542,0.3608,93883.0,93849.0,0.7216]
[1765398022754,0.00015987,93875.0,93857.0,0.00015987]
[1765398023144,0.00015987,93875.0,93866.0,0.0106515]
[1765398023347,0.00015987,93875.0,93860.0,0.0106521]
[1765398023657,0.0106522,93860.0,93857.0,0.00015987]
[1765398023950,0.3608,93858.0,93857.0,0.00015987]
[1765398024150,0.010655,93836.0,93816.0,0.0106571]
[1765398024469,0.3608,93849.0,93819.0,0.3608]
[1765398024641,0.3714535,93849.0,93828.0,0.0106557]
[1765398024846,0.3608,93841.0,93828.0,0.0106558]
[1765398025052,0.3608,93841.0,93833.0,0.0106552]
[1765398025256,0.00015987,93844.0,93843.0,0.0106541]
[1765398025559,0.00015987,93844.0,93831.0,0.0106554]
[1765398025748,0.00015987,93844.0,93826.0,0.010656]
[1765398025943,0.0106549,93836.0,93825.0,0.00015987]
[1765398026142,0.3608,93837.0,93825.0,0.00015987]
[1765398026353,0.00015987,93844.0,93829.0,0.3608]
[1765398026558,0.00015987,93844.0,93834.0,0.0106551]
[1765398026857,0.3608,93840.0,93826.0,0.001]
[1765398027058,0.3608,93840.0,93830.0,0.3608]
[1765398027243,0.3608,93840.0,93830.0,0.0106556]
[1765398027446,0.3608,93840.0,93835.0,0.010655]
[1765398027646,0.3608,93858.0,93839.0,0.3608]
[1765398027955,0.3608,93874.0,93870.0,0.010651]
[1765398028354,0.3608,93888.0,93866.0,0.3608]
[1765398028556,0.3608,93889.0,93866.0,0.3608]
[1765398028751,0.3608,93879.0,93868.0,0.00015977]
[1765398028956,0.3608,93879.0,93877.0,0.0106502]
[1765398029151,0.00015977,93887.0,93885.0,0.0106492]
[1765398029352,0.3608,93902.0,93898.0,0.0106478]
[1765398029553,0.3608,93912.0,93898.0,0.0106478]
[1765398029554,0.3608,93912.0,93908.0,0.0106467]
[1765398030049,0.3608,93912.0,93910.0,0.0106465]
[1765398030449,0.3608,93925.0,93922.0,0.0106451]
[1765398030648,0.3608,93925.0,93902.0,0.00015977]
[1765398030864,0.3608,93925.0,93921.0,0.0106453]
[1765398031050,0.3608,93925.0,93908.0,0.002]
[1765398031245,0.3608,93910.0,93908.0,0.002]
[1765398031454,0.3714465,93910.0,93908.0,0.002]
[1765398031664,0.3714466,93910.0,93908.0,0.002]
[1765398031970,0.3608,93910.0,93908.0,0.002]
[1765398032145,0.3608,93910.0,93902.0,0.00015977]
[1765398032146,0.0106449,93924.0,93902.0,0.00015977]
[1765398032349,0.0106463,93913.0,93902.0,0.00015977]
[1765398032556,0.3608,93905.0,93902.0,0.00015977]
[1765398032761,0.0106472,93904.0,93902.0,0.00015977]
[1765398033057,0.3608,93905.0,93902.0,0.00015977]
[1765398033058,0.0106471,93905.0,93902.0,0.00015977]
[1765398033665,0.010649,93888.0,93877.0,0.0106502]
[1765398033848,0.3608,93883.0,93865.0,0.3608]
[1765398034052,0.3608,93891.0,93884.0,0.0106494]
[1765398034249,0.0106485,93893.0,93873.0,0.3608]
[1765398034250,0.003,93904.0,93903.0,0.0106473]
[1765398035156,0.3608,93910.0,93909.0,0.0106466]
[1765398035355,0.00015977,93913.0,93909.0,0.0106466]
[1765398035660,0.00015977,93913.0,93907.0,0.3608]
[1765398035661,0.3608,93925.0,93907.0,0.3608]
[1765398035864,0.3608,93925.0,93924.0,0.0106449]
[1765398036058,0.3608,93925.0,93917.0,0.0106456]
[1765398036255,0.3608,93925.0,93924.0,0.0106449]
[1765398036658,0.0001028,93934.0,93931.0,0.0106441]
[1765398036857,0.3608,93943.0,93941.0,0.010643]
[1765398036858,0.00010246,93942.0,93941.0,0.010643]
[1765398037062,0.00010246,93942.0,93939.0,0.0106432]
[1765398037260,0.36090246,93942.0,93928.0,0.3608]
[1765398037460,0.3608,93930.0,93923.0,0.00015967]
[1765398037765,0.0106449,93925.0,93923.0,0.00015967]
[1765398038367,0.0106459,93916.0,93903.0,0.0106472]
[1765398038663,0.3608,93904.0,93903.0,0.0106472]
[1765398039162,0.3608,93914.0,93911.0,0.0106463]
[1765398039553,0.3608,93914.0,93903.0,0.00015967]
[1765398039554,0.3608,93914.0,93906.0,0.0106469]
[1765398039865,0.3714461,93914.0,93903.0,0.00015967]
[1765398040065,0.3714461,93914.0,93903.0,0.00315967]
[1765398040260,0.3714461,93914.0,93904.0,0.0106472]
[1765398040450,0.3714461,93914.0,93903.0,0.00315967]
[1765398040451,0.3608,93914.0,93903.0,0.00315967]
[1765398040655,0.3608,93914.0,93911.0,0.0106463]
[1765398041155,0.00015967,93922.0,93921.0,0.0106453]
[1765398041357,0.00015967,93922.0,93917.0,0.0106456]
[1765398041659,0.01080487,93922.0,93912.0,0.0106462]
[1765398041858,0.3608,93913.0,93912.0,0.0106462]
[1765398042053,0.3608,93913.0,93907.0,0.0106468]
[1765398042562,0.3608,93913.0,93908.0,0.0106467]
[1765398042750,0.0106468,93908.0,93903.0,0.00015967]
[1765398042954,0.0106472,93904.0,93903.0,0.00015967]
[1765398043159,0.7322472,93904.0,93903.0,0.00015967]
[1765398043366,0.3608,93919.0,93903.0,0.00015967]
[1765398043755,0.3608,93905.0,93903.0,0.00015967]
[1765398043954,0.3608,93919.0,93916.0,0.0106457]
[1765398044159,0.3608,93919.0,93911.0,0.0106463]
[1765398044360,0.3608,93919.0,93903.0,0.00015967]
[1765398044361,0.0106472,93905.0,93903.0,0.00015967]
[1765398044561,0.3608,93904.0,93903.0,0.00015967]
[1765398045360,0.3714472,93904.0,93903.0,0.00015967]
[1765398045559,0.3608,93904.0,93903.0,0.00315967]
[1765398046161,0.3608,93904.0,93903.0,0.00015967]
[1765398046471,0.3608,93904.0,93903.0,0.00115967]
[1765398048758,0.3608,93904.0,93888.0,0.010649]
[1765398048759,0.0106484,93894.0,93887.0,0.010649]
[1765398048960,0.3608,93888.0,93878.0,0.0106501]
[1765398049169,0.3608,93879.0,93860.0,9.087e-05]
[1765398049376,0.3608,93879.0,93877.0,0.0106502]
[1765398049570,0.3608,93884.0,93880.0,0.0106498]
[1765398049869,0.00015976,93891.0,93882.0,0.0106496]
[1765398050070,0.00015976,93891.0,93887.0,0.0106491]
[1765398050463,0.00015976,93891.0,93879.0,0.3608]
[1765398050668,0.00015976,93891.0,93883.0,0.0106495]
[1765398050870,0.00015976,93891.0,93887.0,0.010649]
[1765398051675,0.00015976,93891.0,93879.0,0.3608]
[1765398051877,0.00015976,93891.0,93889.0,0.0106488]
[1765398052072,0.3608,93912.0,93901.0,0.0106475]
[1765398052073,0.3714463,93912.0,93901.0,0.0106475]
[1765398052377,0.3714463,93912.0,93890.0,0.3608]
[1765398052378,0.3608,93912.0,93909.0,0.0106465]
[1765398052576,0.3608,93922.0,93909.0,0.0106465]
[1765398052773,0.3608,93922.0,93908.0,0.3608]
[1765398053167,0.0106451,93923.0,93908.0,0.3608]
[1765398053364,0.00015976,93924.0,93908.0,0.3608]
[1765398053572,0.0106457,93917.0,93908.0,0.3608]
[1765398053769,0.3608,93911.0,93906.0,0.00015976]
[1765398053962,0.3714465,93910.0,93906.0,0.00015976]
[1765398055176,0.3608,93910.0,93907.0,0.0106469]
[1765398055470,0.3608,93910.0,93906.0,0.00015976]
[1765398055471,0.3608,93910.0,93906.0,0.01280676]
[1765398055874,0.3608,93910.0,93906.0,0.00215976]
[1765398056064,0.3608,93910.0,93906.0,0.00015976]
[1765398056264,0.0106466,93909.0,93906.0,0.00015976]
[1765398057561,0.0106492,93887.0,93883.0,0.0106495]
[1765398057766,0.3714495,93884.0,93883.0,0.0106495]
[1765398058073,0.3608,93884.0,93883.0,0.0106495]
[1765398058862,0.3608,93884.0,93874.0,0.00015976]
[1765398059062,0.3608,93875.0,93874.0,0.00015976]
[1765398059269,0.3608,93875.0,93860.0,9.087e-05]
[1765398059466,0.0106524,93859.0,93833.0,0.3608]
[1765398059783,0.0106507,93874.0,93799.0,0.77572]
[1765398059784,0.3608,93842.0,93808.0,0.3608]
[1765398059973,0.0106527,93856.0,93813.0,0.0106574]
[1765398059974,0.3608,93816.0,93813.0,0.0106574]
[1765398060477,0.00010455,93815.0,93813.0,0.0106574]
[1765398060677,5e-08,93824.0,93823.0,0.0106564]
[1765398060884,0.3608,93850.0,93848.0,0.0106535]
[1765398061069,0.3608,93850.0,93843.0,0.010654]
[1765398061270,0.3608,93850.0,93809.0,0.3608]
[1765398061271,0.0106553,93833.0,93804.0,0.3608]
[1765398061468,0.3608,93815.0,93813.0,0.002]
[1765398061667,0.3608,93825.0,93821.0,0.0106566]
[1765398062585,5e-08,93832.0,93831.0,0.0106555]
[1765398062766,5e-08,93833.0,93831.0,0.0106555]
[1765398063669,0.3608,93840.0,93839.0,0.0106546]
[1765398063886,0.3608,93840.0,93832.0,0.7608]
[1765398063887,0.3608,93858.0,93857.0,0.0106525]
[1765398064079,0.3608,93872.0,93871.0,0.0106509]
[1765398064580,0.3608,93883.0,93882.0,0.0106497]
[1765398065176,0.00106508,93890.0,93889.0,0.0106489]
[1765398065473,0.00010262,93892.0,93889.0,0.0106489]
[1765398065678,0.00010262,93892.0,93891.0,0.3608]
[1765398065873,0.00010262,93892.0,93889.0,0.0106489]
[1765398066479,0.00010262,93892.0,93891.0,0.3608]
[1765398066679,0.3608,93912.0,93893.0,0.0106484]
[1765398066882,0.3608,93932.0,93927.0,0.0106445]
[1765398067183,0.3608,93928.0,93918.0,0.0106455]
[1765398067483,0.3608,93919.0,93913.0,0.0106461]
[1765398067780,0.3608,93919.0,93912.0,0.0106462]
[1765398067978,0.3608,93928.0,93907.0,0.00015976]
[1765398068180,0.3608,93928.0,93924.0,0.0106449]
[1765398069280,0.3608,93950.0,93936.0,0.0106435]
[1765398069500,0.0106434,93938.0,93934.0,0.00015966]
[1765398069688,0.3608,93942.0,93934.0,0.00015966]
[1765398069986,0.3608,93942.0,93939.0,0.0106431]
[1765398070188,0.3608,93942.0,93934.0,0.00015966]
[1765398070375,0.3608,93942.0,93938.0,0.0106433]
[1765398070974,0.3608,93942.0,93935.0,0.0106437]
[1765398071177,0.3628,93942.0,93935.0,0.0106437]
[1765398071781,0.0106435,93937.0,93934.0,0.00015966]
[1765398071986,0.3734429,93942.0,93934.0,0.00015966]
[1765398072373,0.3628,93942.0,93934.0,0.00015966]
[1765398072575,0.002,93942.0,93940.0,0.010643]
[1765398072886,0.3608,93956.0,93941.0,0.3608]
[1765398073182,0.3608,93956.0,93934.0,0.00015966]
[1765398073183,0.3608,93942.0,93934.0,0.00015966]
[1765398073375,0.002,93942.0,93939.0,0.0106432]
[1765398073574,0.002,93942.0,93934.0,0.00015966]
[1765398073774,0.3608,93935.0,93934.0,0.00015966]
[1765398073979,0.3608,93935.0,93900.0,0.00010396]
[1765398074180,0.0106472,93904.0,93900.0,0.00010396]
[1765398074486,0.3608,93905.0,93901.0,0.0106475]
[1765398074878,0.00099999,93960.0,93900.0,0.00010396]
[1765398074879,0.0106416,93954.0,93939.0,0.0106432]
[1765398075178,0.3608,93952.0,93937.0,0.00015966]
[1765398075380,0.00015904,93956.0,93954.0,0.0106415]
[1765398075575,0.00015904,93956.0,93946.0,0.3608]
[1765398075776,0.0106424,93947.0,93937.0,0.00015966]
[1765398075971,0.0106424,93947.0,93921.0,0.3608]
[1765398075972,0.3608,93952.0,93921.0,0.3608]
[1765398076288,0.3608,93952.0,93906.0,0.3608]
[1765398076289,0.3608,93930.0,93906.0,0.3608]
[1765398076690,0.0106461,93914.0,93906.0,0.3608]
[1765398076882,0.3714443,93930.0,93906.0,0.3608]
[1765398077079,0.01080436,93927.0,93917.0,0.0106457]
[1765398077281,0.00015966,93927.0,93924.0,0.0106448]
[1765398077478,0.00015966,93927.0,93924.0,0.3714448]
[1765398078081,0.0106428,93944.0,93924.0,0.3608]
[1765398078376,0.3608,93970.0,93924.0,0.3608]
[1765398078377,0.0106411,93958.0,93932.0,0.3608]
[1765398078581,0.0106411,93958.0,93930.0,0.17016778]
[1765398078582,0.3608,93990.0,93958.0,0.010641]
[1765398078786,0.3608,93976.0,93968.0,0.09282082]
[1765398078988,0.00015904,93981.0,93972.0,0.04131459]
[1765398079189,0.010639,93977.0,93973.0,0.03835777]
[1765398079491,0.0106397,93970.0,93967.0,0.0106399]
[1765398079689,0.3608,93979.0,93963.0,0.00015966]
[1765398079879,0.17016778,93973.0,93972.0,0.09172849]
[1765398080076,0.0106404,93964.0,93963.0,0.00015966]
[1765398080277,0.0106424,93946.0,93943.0,0.09172716]
[1765398080592,0.0106406,93963.0,93930.0,0.0106442]
[1765398080593,0.0106434,93938.0,93930.0,0.0106442]
[1765398080890,0.0106429,93943.0,93940.0,0.0106431]
[1765398081089,0.17016778,93950.0,93939.0,0.0273686]
[1765398081280,0.17016778,93950.0,93937.0,0.0106434]
[1765398081588,0.0106434,93938.0,93935.0,0.00015966]
[1765398082199,0.3608,93936.0,93935.0,0.00015966]
[1765398083486,0.0106434,93938.0,93935.0,0.00115966]
[1765398083788,0.3608,93942.0,93913.0,0.3608]
[1765398083993,0.08300913,93947.0,93929.0,0.3608]
[1765398083994,0.0106435,93937.0,93929.0,0.3608]
[1765398084288,0.0106435,93937.0,93920.0,0.0106454]
[1765398084289,0.010645,93924.0,93920.0,0.3608]
[1765398084507,0.0106441,93932.0,93930.0,0.0106442]
[1765398084791,0.3608,93936.0,93922.0,0.00015966]
[1765398084987,0.0106443,93930.0,93928.0,0.0106444]
[1765398085180,0.0106441,93932.0,93929.0,0.0106443]
[1765398085385,0.0106437,93936.0,93934.0,0.0106438]
[1765398085581,0.17032744,93940.0,93934.0,0.0106437]
[1765398085780,0.17032744,93940.0,93928.0,0.3608]
[1765398085994,0.00015966,93940.0,93938.0,0.0106433]
[1765398086584,0.3608,93973.0,93939.0,0.0106432]
[1765398086790,0.3608,93973.0,93972.0,0.0106395]
[1765398086990,0.3608,93978.0,93977.0,0.0106389]
[1765398088288,0.3608,93978.0,93968.0,0.00015966]
[1765398088489,0.3608,93969.0,93968.0,0.00015966]
[1765398088698,0.3608,93969.0,93964.0,0.0106403]
[1765398088699,0.3608,93969.0,93966.0,0.01063976]
[1765398088886,0.3608,93969.0,93962.0,0.0106405]
[1765398089094,0.3608,93969.0,93967.0,0.01064]
[1765398089988,0.00015966,93977.0,93976.0,0.010639]
[1765398092290,0.00015966,93977.0,93976.0,0.014639]
[1765398092997,0.00015966,93977.0,93976.0,0.010639]
[1765398093196,0.00015966,93977.0,93976.0,0.013639]
[1765398094387,0.00015966,93977.0,93966.0,0.3608]
[1765398094388,0.36095966,93977.0,93955.0,0.3608]
[1765398094592,0.3714408,93960.0,93934.0,0.0106437]
[1765398094794,0.3608,93960.0,93933.0,0.3608]
[1765398094995,0.3608,93942.0,93916.0,0.3608]
[1765398095293,0.3608,93936.0,93935.0,0.0106437]
[1765398095493,0.0106449,93924.0,93916.0,0.3608]
[1765398095798,0.0106449,93924.0,93920.0,0.0106453]
[1765398095993,0.00015966,93929.0,93926.0,0.0106447]
[1765398097102,0.00015966,93929.0,93926.0,0.3714447]
[1765398097488,0.00015966,93929.0,93926.0,0.0136447]
[1765398097688,0.00015966,93929.0,93926.0,0.003]
[1765398097895,0.00015966,93929.0,93927.0,0.0106446]
[1765398098096,0.3608,93944.0,93928.0,0.3714444]
[1765398098304,0.3608,93956.0,93936.0,0.3608]
[1765398098492,0.3608,93956.0,93953.0,0.0106416]
[1765398098800,0.0106419,93951.0,93946.0,0.0106424]
[1765398099008,0.3608,93947.0,93941.0,0.010643]
[1765398099206,0.00015966,93953.0,93950.0,0.0106419]
[1765398099519,0.00015966,93953.0,93950.0,0.3714419]
[1765398099885,0.3608,93970.0,93955.0,0.0106414]
[1765398100092,0.3608,93970.0,93969.0,0.0106398]
[1765398100298,0.3608,93970.0,93966.0,0.0106401]
[1765398100604,0.0106402,93966.0,93957.0,0.0106411]
[1765398100794,0.3714411,93958.0,93951.0,0.0106419]
[1765398100994,0.3608,93958.0,93950.0,0.002]
[1765398101495,0.00015966,93964.0,93950.0,0.3628]
[1765398101691,0.0106405,93963.0,93956.0,0.0106413]
[1765398101892,0.01080016,93964.0,93954.0,0.0106414]
[1765398102093,0.3608,93958.0,93954.0,0.0106414]
[1765398102296,0.3608,93958.0,93951.0,0.0106419]
[1765398102602,0.3608,93958.0,93945.0,0.00015966]
[1765398102798,0.371442,93950.0,93946.0,0.0106424]
[1765398102993,0.371442,93950.0,93945.0,0.00015966]
[1765398103195,0.0106424,93947.0,93945.0,0.00015966]
[1765398103498,0.0106452,93922.0,93921.0,0.3608]
[1765398103702,0.3608,93946.0,93908.0,0.3608]
[1765398103703,0.010645,93924.0,93908.0,0.3608]
[1765398104203,0.010646,93915.0,93908.0,0.3608]
[1765398104506,0.3608,93925.0,93922.0,0.0106451]
[1765398104697,0.0106444,93929.0,93908.0,0.3608]
[1765398104898,0.0106446,93927.0,93921.0,0.0106452]
[1765398105099,0.0106448,93925.0,93921.0,0.0106452]
[1765398105302,0.3714445,93928.0,93923.0,0.010645]
[1765398105495,0.3608,93928.0,93926.0,0.0106446]
[1765398105691,0.00015966,93933.0,93914.0,0.010646]
[1765398105692,0.00015966,93933.0,93932.0,0.010644]
[1765398105994,0.00015966,93933.0,93932.0,0.371444]
[1765398106904,0.3714407,93962.0,93955.0,0.0106414]
[1765398107201,0.0106411,93958.0,93953.0,0.0106416]
[1765398107498,0.3608,93962.0,93954.0,0.03520245]
[1765398107799,0.0106422,93948.0,93945.0,0.0273686]
[1765398107995,0.0106425,93945.0,93943.0,0.0273686]
[1765398108197,0.0106433,93938.0,93937.0,0.00015966]
[1765398108393,0.3608,93938.0,93937.0,0.03188669]
[1765398108592,0.3714433,93938.0,93937.0,0.03188669]
[1765398109497,0.3714433,93938.0,93937.0,0.00115966]
[1765398110200,0.00015966,93953.0,93937.0,0.00115966]
[1765398110402,0.0106428,93943.0,93937.0,0.01180306]
[1765398110801,0.0106424,93946.0,93943.0,0.0106427]
[1765398111103,0.0106424,93946.0,93937.0,0.00115966]
[1765398111104,0.00015966,93953.0,93950.0,0.010642]
[1765398111800,0.00015966,93953.0,93937.0,0.00015966]
[1765398112100,0.0106432,93939.0,93938.0,0.02806165]
[1765398112694,0.3608,93946.0,93945.0,0.0106425]
[1765398112895,0.3608,93946.0,93940.0,0.0106431]
[1765398113099,0.0106429,93942.0,93941.0,0.03871412]
[1765398113287,0.0106429,93942.0,93941.0,0.0385557]
[1765398113489,0.0106432,93941.0,93938.0,0.001]
[1765398113692,0.0106433,93938.0,93937.0,0.00015966]
[1765398113999,0.0106463,93912.0,93911.0,0.02794365]
[1765398114204,0.0106463,93912.0,93911.0,0.02793174]
[1765398114397,0.3714463,93912.0,93911.0,0.02793174]
[1765398114705,0.0106467,93909.0,93900.0,0.00010396]
[1765398114890,0.0106462,93913.0,93911.0,0.0106464]
[1765398115091,0.01080576,93914.0,93911.0,0.0106464]
[1765398115808,0.01080576,93914.0,93911.0,0.0146464]
[1765398116200,0.00015966,93914.0,93911.0,0.0146464]
[1765398116903,0.00015966,93914.0,93913.0,0.0106462]
[1765398117106,0.0106443,93930.0,93929.0,0.0106444]
[1765398117310,0.0106448,93927.0,93926.0,0.0106447]
[1765398117607,0.0106437,93936.0,93931.0,0.0106441]
[1765398117792,0.0106439,93934.0,93931.0,0.0106441]
[1765398117997,0.0106439,93934.0,93912.0,0.3608]
[1765398117998,0.3608,93932.0,93913.0,0.003]
[1765398118199,0.00015966,93932.0,93931.0,0.0106441]
[1765398119096,0.00015966,93932.0,93921.0,0.02794365]
[1765398119301,0.0106452,93923.0,93922.0,0.02785455]
[1765398119605,0.00015966,93932.0,93931.0,0.001]
[1765398119805,0.3608,93962.0,93931.0,0.38963208]
[1765398119998,0.0106409,93960.0,93956.0,0.0106413]
[1765398120305,0.3608,93962.0,93959.0,0.0106409]
[1765398120508,0.3608,93962.0,93944.0,0.0106426]
[1765398120509,0.3608,93962.0,93944.0,0.3608]
[1765398120704,0.0106425,93945.0,93936.0,0.3608]
[1765398121010,0.010644,93932.0,93931.0,0.00015966]
[1765398121208,0.3608,93941.0,93931.0,0.02792092]
[1765398121413,0.3608,93948.0,93936.0,0.0106436]
[1765398121713,0.3608,93948.0,93923.0,0.02794365]
[1765398121714,0.0106449,93924.0,93923.0,0.02794365]
[1765398121911,0.0106449,93924.0,93903.0,0.3608]
[1765398121912,0.0106456,93918.0,93914.0,0.0372582]
[1765398122209,0.0532335,93909.0,93886.0,0.05577559]
[1765398122408,0.3608,93887.0,93881.0,0.0106498]
[1765398122710,0.00015975,93893.0,93887.0,0.0106491]
[1765398122902,0.0106486,93892.0,93887.0,0.0106491]
[1765398123211,0.00015975,93893.0,93891.0,0.0106487]
[1765398123410,7.855e-05,93892.0,93891.0,0.0106487]
[1765398123715,0.0106498,93881.0,93878.0,0.3608]
[1765398123898,9.294e-05,93880.0,93879.0,0.01065]
[1765398124103,9.294e-05,93880.0,93879.0,0.010754]
[1765398125706,9.294e-05,93880.0,93879.0,0.005104]
[1765398126105,0.36089294,93880.0,93879.0,0.005]
[1765398126706,0.36089294,93880.0,93879.0,0.0039282]
[1765398127306,0.36089294,93880.0,93854.0,0.3608]
[1765398127307,0.0106513,93868.0,93854.0,0.3608]
[1765398127516,0.37155526,93868.0,93845.0,0.3608]
[1765398127706,0.0106538,93847.0,93845.0,0.3608]
[1765398128009,0.0106543,93841.0,93832.0,0.3608]
[1765398128215,0.3714543,93841.0,93832.0,0.3608]
[1765398128508,0.01073293,93841.0,93831.0,0.00015984]
[1765398128703,0.0106572,93816.0,93801.0,0.3608]
[1765398128905,0.0106598,93793.0,93791.0,0.3608]
[1765398129104,0.0106598,93793.0,93782.0,0.3608]
[1765398129302,0.3608,93793.0,93757.0,0.07185162]
[1765398129498,0.0106626,93769.0,93752.0,0.0106644]
[1765398129714,9.434e-05,93768.0,93758.0,0.00015993]
[1765398129911,0.0106628,93767.0,93758.0,0.00015993]
[1765398130109,0.0106637,93759.0,93758.0,0.00015993]
[1765398130310,7.63e-05,93759.0,93758.0,0.00015993]
[1765398131010,0.00015993,93776.0,93775.0,0.0106618]
[1765398131403,0.00015993,93776.0,93763.0,0.0106632]
[1765398131609,0.010663,93766.0,93762.0,0.3608]
[1765398131813,0.0106634,93761.0,93758.0,0.00015993]
[1765398132013,0.0106663,93736.0,93727.0,0.3608]
[1765398132200,0.0106665,93734.0,93727.0,0.3608]
[1765398132508,0.0106665,93734.0,93715.0,0.0106686]
[1765398132509,0.3608,93730.0,93715.0,0.0106686]
[1765398132704,0.371467,93730.0,93709.0,0.01079883]
[1765398132915,0.0106682,93720.0,93709.0,0.00012953]
[1765398133210,0.00012494,93719.0,93710.0,0.00016002]
[1765398133516,0.010669,93713.0,93710.0,0.00016002]
[1765398133711,0.00016002,93729.0,93710.0,0.00016002]
[1765398133712,0.0106691,93711.0,93710.0,0.00016002]
[1765398133912,0.00011777,93712.0,93710.0,0.00016002]
[1765398134099,0.3608,93711.0,93710.0,0.00016002]
[1765398134306,0.00016002,93729.0,93710.0,0.00016002]
[1765398134508,0.00016002,93729.0,93725.0,0.0106675]
[1765398134718,0.0106637,93760.0,93733.0,0.0106665]
[1765398134912,0.0106634,93761.0,93739.0,0.0106658]
[1765398135307,0.0106641,93756.0,93732.0,0.0106666]
[1765398135507,0.0533055,93782.0,93738.0,0.010666]
[1765398135508,0.08640879,93777.0,93738.0,0.010666]
[1765398135711,0.3608,93757.0,93748.0,0.00016002]
[1765398135912,0.0106636,93760.0,93748.0,0.00016002]
[1765398136115,0.0106667,93733.0,93730.0,0.3608]
[1765398136418,0.7216,93731.0,93697.0,0.0106707]
[1765398136713,0.7216,93731.0,93687.0,0.3608]
[1765398136714,0.010669,93712.0,93687.0,0.3608]
[1765398136902,0.0106692,93710.0,93690.0,0.0106715]
[1765398137104,0.0106692,93710.0,93687.0,0.3608]
[1765398137105,0.0106692,93710.0,93700.0,0.00016002]
[1765398137506,0.3714703,93701.0,93700.0,0.00016002]
[1765398137820,0.0106727,93680.0,93669.0,0.0106739]
[1765398138016,0.3608,93680.0,93679.0,0.01088608]
[1765398138412,0.36092802,93680.0,93679.0,0.00021328]
[1765398140007,0.36092802,93680.0,93679.0,0.00221328]
[1765398140207,0.00012802,93680.0,93679.0,0.40221328]
[1765398140417,0.3608,93703.0,93696.0,0.0106708]
[1765398140719,0.3608,93703.0,93695.0,0.0106709]
[1765398140913,0.3608,93703.0,93686.0,0.3608]
[1765398141118,0.3608,93703.0,93694.0,0.010671]
[1765398141418,0.00016012,93708.0,93707.0,0.0106696]
[1765398141606,0.00016012,93708.0,93702.0,0.0106701]
[1765398141810,0.3608,93707.0,93702.0,0.0106701]
[1765398142017,0.3608,93707.0,93698.0,0.0106706]
[1765398142218,0.3608,93707.0,93696.0,0.002]
[1765398142518,0.00016012,93708.0,93707.0,0.0106696]
[1765398143020,0.3608,93719.0,93707.0,0.4]
[1765398143216,0.3608,93711.0,93707.0,0.002]
[1765398143416,0.0106673,93727.0,93716.0,0.0106685]
[1765398143608,0.3608,93720.0,93707.0,0.002]
[1765398143812,0.3608,93720.0,93718.0,0.0106683]
[1765398144312,0.00016003,93728.0,93727.0,0.0106673]
[1765398144512,0.00016003,93728.0,93722.0,0.0106678]
[1765398144717,0.00016003,93728.0,93712.0,0.3608]
[1765398144919,0.00016003,93728.0,93720.0,0.010668]
[1765398145111,0.0106673,93727.0,93720.0,0.010668]
[1765398145313,0.3608,93721.0,93715.0,0.0106686]
[1765398145517,0.3608,93721.0,93719.0,0.0106682]
[1765398145717,0.3608,93721.0,93710.0,0.00016003]
[1765398146113,0.0106681,93720.0,93710.0,0.00016003]